bitfinex-derivatives/quotes_ETHF0:USTF0_20251012
["timestamp","ask_amount","ask_price","bid_price","bid_amount"]
[1760229043814,0.00307251,3728.8,3728.7,0.52535]
[1760229044706,0.3666,3729.8,3729.6,0.48213]
[1760229044907,0.3666,3730.2,3729.6,0.52523]
[1760229045103,0.3666,3730.0,3729.6,0.52523]
[1760229045406,0.3666,3730.1,3729.4,0.48216]
[1760229045708,0.5073,3730.0,3729.1,0.0431]
[1760229045908,0.1407,3730.0,3729.6,0.48213]
[1760229046100,0.00245913,3730.1,3729.9,0.4821]
[1760229046301,0.00245913,3730.1,3730.0,0.0431]
[1760229047005,0.00245913,3730.1,3730.0,5.0431]
[1760229047306,0.5073,3731.0,3730.1,0.0431]
[1760229047504,0.3666,3731.0,3730.7,0.48199]
[1760229047902,0.5073,3731.5,3731.0,0.48195]
[1760229048109,0.1407,3732.0,3731.3,0.48191]
[1760229048110,0.3666,3731.9,3731.3,0.48191]
[1760229048309,0.00225698,3731.9,3730.8,0.0431]
[1760229048510,0.00225698,3731.9,3730.7,1.20499]
[1760229048511,0.00225698,3731.9,3731.7,0.48186]
[1760229048715,0.36885698,3731.9,3731.7,0.48186]
[1760229048915,0.3666,3731.8,3731.7,0.48186]
[1760229049115,0.3666,3731.8,3731.5,0.48189]
[1760229049410,0.3666,3731.8,3731.6,0.48187]
[1760229049615,0.3666,3731.8,3730.4,0.0431]
[1760229049914,0.48193,3731.3,3730.4,0.0431]
[1760229050114,0.48193,3731.3,3730.7,0.48199]
[1760229050610,0.48186,3731.8,3730.4,0.0431]
[1760229050815,0.3666,3731.7,3730.4,0.0431]
[1760229051011,0.4819,3731.5,3730.4,0.0431]
[1760229051207,0.3666,3731.2,3730.4,0.0431]
[1760229051419,0.3666,3731.4,3730.7,0.48199]
[1760229052021,0.3666,3731.4,3730.4,0.0431]
[1760229052220,0.3666,3731.4,3731.0,0.48195]
[1760229052809,0.3666,3731.8,3731.5,0.48188]
[1760229053014,0.3666,3731.8,3730.2,1.20515]
[1760229053209,0.3666,3731.8,3731.1,0.48193]
[1760229053413,0.3666,3731.8,3731.3,0.48191]
[1760229053615,0.36885698,3731.9,3731.3,0.48191]
[1760229053810,0.3666,3731.8,3731.4,0.4819]
[1760229054009,0.00225698,3731.9,3731.4,0.4819]
[1760229054311,0.3666,3731.8,3731.6,0.48187]
[1760229054918,0.3666,3731.8,3730.6,0.0431]
[1760229055212,0.48192,3731.3,3730.6,0.48201]
[1760229055408,0.1407,3731.5,3730.5,0.0431]
[1760229055614,0.84851,3731.4,3730.2,0.0431]
[1760229055813,0.3666,3731.2,3730.2,0.0431]
[1760229056114,0.3666,3731.2,3730.7,0.48199]
[1760229056316,0.3666,3731.1,3730.8,0.48197]
[1760229056517,0.48192,3731.3,3730.8,0.48197]
[1760229056820,0.48194,3731.2,3730.6,0.482]
[1760229057316,0.3666,3730.8,3729.9,0.00193327]
[1760229057514,0.3666,3730.8,3730.0,0.0431]
[1760229057820,0.1407,3731.5,3731.0,0.48195]
[1760229058116,0.84853,3731.3,3730.8,0.48198]
[1760229058311,0.48194,3731.2,3730.7,0.48199]
[1760229058618,0.1407,3731.0,3730.7,0.48199]
[1760229058819,0.5073,3730.5,3730.4,0.48203]
[1760229059013,0.3666,3730.9,3730.7,0.48199]
[1760229059811,0.3666,3731.2,3730.8,0.48198]
[1760229060015,0.3666,3731.1,3730.8,0.48198]
[1760229060212,0.48195,3731.1,3730.6,0.482]
[1760229060410,0.48195,3731.1,3729.9,0.00193327]
[1760229060411,0.1407,3730.5,3730.4,0.48203]
[1760229060610,0.5073,3730.5,3730.4,0.48203]
[1760229060819,0.5073,3730.5,3730.3,0.48204]
[1760229061121,0.3666,3730.9,3730.6,0.5251]
[1760229061715,0.62266,3731.0,3730.4,0.48203]
[1760229061912,0.48206,3730.3,3729.9,0.00193327]
[1760229062125,0.48207,3730.2,3729.9,0.00193327]
[1760229062615,0.5073,3730.0,3728.3,0.0431]
[1760229062822,0.3666,3729.4,3728.6,0.48226]
[1760229063122,0.8488,3729.2,3728.6,0.48226]
[1760229063417,0.3666,3729.4,3728.3,0.4823]
[1760229063734,0.36879616,3729.4,3728.6,0.48226]
[1760229064026,0.4822,3729.2,3728.7,0.48224]
[1760229064510,0.3666,3729.0,3728.7,0.48224]
[1760229064712,0.4822,3729.2,3728.7,0.48224]
[1760229065215,0.1342,3729.0,3728.7,0.48224]
[1760229065420,0.3637,3728.9,3728.5,0.48228]
[1760229065616,0.3637,3728.9,3728.3,0.00215465]
[1760229066315,0.1342,3729.0,3728.6,0.48226]
[1760229067119,0.3637,3728.9,3728.7,0.48225]
[1760229067313,0.3637,3729.3,3729.2,0.48219]
[1760229067818,0.3637,3728.9,3728.5,0.48227]
[1760229068520,0.3637,3728.8,3728.5,0.48227]
[1760229068910,0.3637,3728.7,3728.5,0.48227]
[1760229069126,0.00219616,3729.4,3729.3,0.52538]
[1760229069322,1.31206533,3730.4,3729.3,0.0432]
[1760229069323,0.3637,3730.2,3729.3,0.0432]
[1760229069623,0.3637,3730.4,3730.2,0.48205]
[1760229070022,0.1342,3731.0,3730.6,0.48201]
[1760229070218,0.3637,3730.8,3730.7,0.48199]
[1760229070619,0.3637,3730.7,3730.5,0.48202]
[1760229070914,0.3637,3730.9,3730.7,0.48199]
[1760229071319,0.13671075,3731.0,3730.7,0.48199]
[1760229071523,0.70361857,3730.9,3730.7,0.48199]
[1760229071721,0.13671075,3731.0,3730.7,0.48199]
[1760229071923,0.13671075,3731.0,3729.9,1.20525]
[1760229071924,0.3637,3730.8,3730.6,0.482]
[1760229072221,0.61868075,3731.0,3730.6,0.482]
[1760229072520,0.3637,3730.8,3730.7,0.48199]
[1760229073523,0.13671075,3731.0,3730.5,0.48201]
[1760229073721,0.70441775,3730.9,3730.5,0.48201]
[1760229074025,0.3637,3730.9,3730.6,0.482]
[1760229074218,0.3637,3730.9,3730.7,0.48198]
[1760229074520,0.3637,3730.8,3730.5,0.48201]
[1760229074720,0.48198,3730.9,3730.5,0.48201]
[1760229075023,0.3637,3730.7,3730.5,0.48201]
[1760229075221,0.3637,3730.8,3730.5,0.48201]
[1760229075523,0.1342,3730.5,3730.3,0.48204]
[1760229075723,0.3637,3730.4,3730.3,0.48204]
[1760229076025,0.3637,3730.3,3729.7,0.0432]
[1760229076316,0.1342,3730.0,3728.5,1.20568]
[1760229076515,0.48219,3729.2,3728.3,0.04535465]
[1760229076717,0.1342,3729.0,3728.7,0.48225]
[1760229077522,0.3637,3728.9,3728.7,0.48225]
[1760229077716,0.1342,3729.0,3728.7,0.48225]
[1760229077925,0.3637,3728.9,3728.8,0.48223]
[1760229078624,0.1342,3729.0,3728.6,0.48226]
[1760229078823,0.1342,3729.0,3728.7,0.48225]
[1760229079019,0.3637,3728.9,3728.7,0.48225]
[1760229079618,0.1342,3729.0,3728.3,0.00215465]
[1760229079619,0.1342,3728.5,3728.3,0.00215465]
[1760229079817,0.3637,3728.4,3728.3,0.00215465]
[1760229082521,5.3637,3728.4,3726.9,0.0432]
[1760229082730,0.3637,3727.4,3727.0,0.48246]
[1760229083129,0.61662,3727.5,3727.0,0.48246]
[1760229083329,0.3637,3727.2,3726.3,0.0432]
[1760229083629,0.00222325,3727.2,3726.9,0.48248]
[1760229083821,0.3637,3727.1,3726.9,0.48248]
[1760229084031,0.3637,3727.1,3727.0,0.48247]
[1760229085338,0.3637,3727.1,3726.8,0.4825]
[1760229085541,0.3637,3727.1,3726.7,0.48251]
[1760229085835,0.36592325,3727.2,3726.3,0.04590177]
[1760229086040,0.36592325,3727.2,3727.0,0.48247]
[1760229086434,0.00222325,3727.2,3727.1,0.0432]
[1760229089543,0.00222325,3727.2,3727.1,5.0432]
[1760229089937,0.3637,3728.3,3728.2,0.48232]
[1760229090639,0.3637,3728.3,3727.0,0.041]
[1760229090640,0.84604,3728.1,3727.0,0.041]
[1760229090832,0.3637,3727.9,3727.5,0.4824]
[1760229091032,0.1342,3727.5,3727.1,0.48245]
[1760229091434,0.61661,3727.5,3726.9,0.48248]
[1760229091638,0.1342,3727.0,3726.9,0.48248]
[1760229091828,0.3637,3727.0,3726.9,0.48248]
[1760229092033,0.3637,3727.4,3727.3,0.48243]
[1760229093242,0.00316813,3728.1,3728.0,0.48234]
[1760229093546,0.00316813,3728.1,3728.0,5.52334]
[1760229094037,0.3637,3728.9,3728.8,0.48224]
[1760229094237,0.3637,3729.3,3729.2,0.48219]
[1760229094433,0.3637,3729.3,3728.5,1.20571]
[1760229094434,0.4979,3730.0,3729.8,0.4821]
[1760229094641,0.3395,3730.4,3730.2,0.48205]
[1760229094834,0.1342,3731.0,3729.8,0.4821]
[1760229094835,0.48199,3730.8,3729.8,0.4821]
[1760229095041,0.3395,3729.9,3729.8,0.00260346]
[1760229095939,5.3395,3729.9,3729.8,0.00260346]
[1760229096934,5.3395,3729.9,3728.6,0.0408]
[1760229096935,0.3395,3729.3,3729.1,0.48219]
[1760229097138,0.1381,3729.5,3729.1,0.48219]
[1760229097139,0.3395,3729.4,3729.1,0.48219]
[1760229097348,0.4776,3728.5,3728.4,0.48228]
[1760229097840,0.1381,3729.0,3728.4,5.00273505]
[1760229098041,0.1381,3729.5,3728.9,0.48222]
[1760229098241,0.3395,3729.4,3729.2,0.48218]
[1760229098637,0.1381,3729.5,3729.2,0.48218]
[1760229098838,0.3395,3729.4,3729.2,0.48218]
[1760229099044,0.3395,3729.4,3728.7,0.0408]
[1760229099045,0.3395,3729.4,3729.3,0.48217]
[1760229099248,0.3395,3729.8,3729.7,0.48212]
[1760229099448,0.48208,3730.1,3729.5,0.48215]
[1760229099650,0.48208,3730.1,3729.6,0.48213]
[1760229099950,0.3395,3729.9,3729.6,0.48213]
[1760229100353,0.62019,3730.0,3729.6,0.48213]
[1760229100654,0.1381,3729.5,3729.4,0.48216]
[1760229100848,0.1381,3729.0,3728.9,0.48222]
[1760229101051,0.3395,3729.4,3729.0,0.4822]
[1760229101248,0.3395,3729.4,3728.4,0.00273505]
[1760229101249,0.1381,3729.5,3729.4,0.48216]
[1760229101452,0.4776,3729.5,3729.4,0.48216]
[1760229101949,0.3395,3729.5,3729.4,0.48216]
[1760229102147,0.1381,3730.0,3729.8,0.4821]
[1760229102349,0.1381,3730.0,3729.6,0.48213]
[1760229102658,0.481,3729.5,3729.4,0.48216]
[1760229102946,0.3429,3728.9,3728.8,0.48223]
[1760229103145,0.1381,3729.5,3728.7,1.20564]
[1760229103146,0.3429,3729.4,3728.7,1.20564]
[1760229103352,0.62019,3730.0,3729.5,0.48214]
[1760229103539,0.3429,3729.7,3729.5,0.48214]
[1760229103742,0.62019,3730.0,3729.5,0.48214]
[1760229103952,0.3429,3729.9,3729.5,0.48214]
[1760229104156,0.3429,3729.7,3729.5,0.48214]
[1760229104350,0.3429,3729.6,3729.5,0.48214]
[1760229104652,0.1356,3729.0,3728.9,0.48222]
[1760229104846,0.4785,3729.0,3728.9,0.48222]
[1760229105750,0.3429,3729.8,3729.6,0.48213]
[1760229105944,0.62019,3730.0,3729.6,0.48213]
[1760229106145,0.3429,3729.9,3729.7,0.48212]
[1760229106347,0.62019,3730.0,3729.7,0.48212]
[1760229106551,0.3429,3729.7,3729.5,0.48214]
[1760229106752,0.48212,3729.8,3729.5,0.48214]
[1760229106954,0.3429,3729.7,3729.5,0.48214]
[1760229107254,0.3429,3729.6,3729.5,0.48214]
[1760229108052,0.3429,3729.9,3729.8,0.4821]
[1760229108250,0.3429,3729.8,3729.6,0.48213]
[1760229108553,0.4785,3729.5,3729.4,0.48216]
[1760229108751,0.48219,3729.3,3728.4,1.24926505]
[1760229109052,0.3429,3729.2,3728.4,1.24926505]
[1760229109254,0.61782,3729.0,3728.7,0.48225]
[1760229109855,0.3429,3728.9,3728.7,0.48225]
[1760229110148,0.1356,3728.5,3728.4,0.00273505]
[1760229110356,0.4785,3728.5,3728.4,0.00273505]
[1760229111355,0.1356,3729.0,3728.4,0.00273505]
[1760229111555,0.1356,3729.5,3729.4,0.48216]
[1760229111854,0.3429,3729.9,3729.5,0.48214]
[1760229112254,0.3429,3729.9,3729.8,0.4821]
[1760229112556,0.1381,3730.0,3728.3,3.60143712]
[1760229112758,0.3429,3729.4,3728.5,0.0408]
[1760229112964,0.1381,3730.0,3729.9,0.4821]
[1760229113256,0.13771434,3730.5,3730.3,0.48204]
[1760229113558,0.3429,3730.4,3730.1,0.48207]
[1760229114255,0.3429,3730.4,3730.3,0.48204]
[1760229120358,0.1356,3729.5,3728.8,5.74493368]
[1760229120568,0.3429,3728.8,3728.3,2.39567712]
[1760229120866,0.48224,3728.9,3728.3,0.4823]
[1760229120867,0.4785,3728.5,3728.3,0.4823]
[1760229121253,0.4785,3728.5,3728.1,0.48233]
[1760229121454,5.4785,3728.5,3727.6,0.48239]
[1760229121663,5.4785,3728.5,3727.2,2.39567712]
[1760229122162,5.4785,3728.5,3727.4,0.48242]
[1760229122563,5.4785,3728.5,3727.5,0.4824]
[1760229123063,0.1356,3727.5,3727.3,0.48242]
[1760229123260,0.3429,3727.4,3727.1,0.48246]
[1760229123454,0.1356,3727.5,3726.9,0.48249]
[1760229123650,0.1356,3727.5,3726.7,0.48251]
[1760229123651,0.3429,3727.2,3726.7,0.48251]
[1760229123860,0.3429,3727.1,3726.7,0.00253053]
[1760229124064,0.00322616,3727.2,3727.1,0.2071]
[1760229124461,0.1356,3729.0,3727.2,0.2071]
[1760229124656,0.1356,3729.0,3728.3,0.48229]
[1760229124961,0.61783,3729.0,3728.3,0.48229]
[1760229125160,0.1356,3729.0,3728.4,0.48228]
[1760229125353,0.13889043,3729.0,3728.0,0.2071]
[1760229126156,0.3573,3728.9,3728.0,0.2071]
[1760229126365,0.62111043,3729.0,3728.4,0.48228]
[1760229127057,0.8396,3728.4,3727.8,0.48236]
[1760229127258,0.1473,3728.0,3727.8,0.48236]
[1760229127458,0.3573,3728.2,3728.0,0.48234]
[1760229127763,0.1473,3728.5,3728.0,0.48234]
[1760229128059,0.3573,3728.4,3728.0,0.48234]
[1760229128463,0.3573,3728.4,3728.3,0.4823]
[1760229128966,0.3573,3728.4,3728.1,0.48233]
[1760229129164,0.13889043,3729.0,3727.8,0.2069]
[1760229129165,0.36059043,3729.0,3728.9,0.48223]
[1760229129464,0.00329043,3729.0,3728.9,0.68913]
[1760229129659,0.00329043,3729.0,3728.9,5.68913]
[1760229130361,0.00329043,3729.0,3728.9,0.68913]
[1760229130664,0.00329043,3729.0,3728.9,5.68913]
[1760229131252,0.00329043,3729.0,3728.9,0.68913]
[1760229131660,0.00329043,3729.0,3728.9,0.48223]
[1760229132762,0.3573,3730.2,3729.5,0.2069]
[1760229133060,0.5046,3730.5,3730.4,0.48203]
[1760229133860,0.50736619,3730.5,3730.4,0.48393417]
[1760229135263,5.50736619,3730.5,3730.4,0.00190417]
[1760229136473,0.50736619,3730.5,3730.4,0.00190417]
[1760229136973,0.00276619,3730.5,3730.4,0.20880417]
[1760229137464,0.00276619,3730.5,3730.4,5.20880417]
[1760229138066,0.3573,3731.6,3731.4,0.4819]
[1760229138270,0.48181,3732.2,3731.7,0.48186]
[1760229138479,0.3573,3731.8,3731.2,0.48192]
[1760229138672,0.1473,3731.5,3731.3,0.48191]
[1760229138978,0.3573,3731.4,3731.3,0.48191]
[1760229139268,0.00296193,3731.5,3731.4,0.2069]
[1760229139465,0.3573,3733.0,3731.8,0.2069]
[1760229139667,0.1473,3733.5,3733.1,0.48168]
[1760229139861,0.3573,3733.4,3733.1,0.48168]
[1760229140471,0.36008329,3733.4,3733.1,0.48471978]
[1760229140671,0.00278329,3733.4,3733.2,0.48166]
[1760229140870,0.00278329,3733.4,3733.3,0.2069]
[1760229142073,0.83875,3734.9,3733.5,0.2042]
[1760229142667,0.83875,3734.9,3734.2,0.48153]
[1760229142974,0.48148,3734.8,3734.2,0.48153]
[1760229143172,0.48148,3734.8,3734.0,0.48157]
[1760229143371,0.3573,3734.1,3733.1,0.00303978]
[1760229143573,0.3573,3733.9,3733.1,0.00303978]
[1760229143773,0.3573,3733.6,3733.1,0.00303978]
[1760229143974,0.1473,3733.5,3733.1,0.00303978]
[1760229144175,0.3573,3733.4,3733.1,0.00303978]
[1760229144681,0.1473,3733.5,3733.1,0.00303978]
[1760229144869,0.3573,3733.4,3733.1,0.00303978]
[1760229145071,0.83896,3733.4,3733.1,0.00303978]
[1760229145270,0.1473,3733.5,3733.1,0.00303978]
[1760229145271,0.3573,3733.3,3733.1,0.00303978]
[1760229145476,0.3573,3733.4,3733.1,0.00303978]
[1760229145675,0.1473,3733.5,3733.1,0.00303978]
[1760229145866,0.3573,3733.4,3733.1,0.00303978]
[1760229146378,0.3573,3733.9,3733.1,0.00303978]
[1760229146578,0.1473,3734.0,3733.5,0.48163]
[1760229146783,0.3573,3733.9,3733.5,0.48163]
[1760229147574,0.3573,3733.9,3733.1,0.00303978]
[1760229147575,0.3573,3733.3,3733.1,0.00303978]
[1760229147773,0.3573,3733.2,3733.1,0.00303978]
[1760229148885,5.3573,3733.2,3733.1,0.00303978]
[1760229149384,0.3573,3733.2,3733.1,0.00303978]
[1760229149681,5.3573,3733.2,3733.1,0.00303978]
[1760229150375,5.3573,3733.2,3731.5,0.48189]
[1760229150376,0.3573,3732.1,3731.5,0.48189]
[1760229150576,0.3573,3732.4,3731.7,0.48186]
[1760229150882,0.3573,3732.4,3732.0,0.48182]
[1760229151084,0.3573,3732.4,3732.0,0.68902]
[1760229151382,0.3604226,3732.4,3732.1,0.48181]
[1760229151679,0.0031226,3732.4,3732.2,0.48179]
[1760229151878,0.3573,3732.9,3732.7,0.48173]
[1760229152077,0.48166,3733.3,3732.9,0.48171]
[1760229152381,0.3573,3733.2,3732.9,0.48171]
[1760229152782,0.36014234,3733.2,3733.0,0.48169]
[1760229153074,0.3573,3733.1,3732.7,0.48172]
[1760229153278,0.00284234,3733.2,3732.9,0.2072]
[1760229153473,0.00284234,3733.2,3733.0,0.48169]
[1760229153674,0.1473,3733.0,3732.0,0.20948245]
[1760229153877,0.3573,3732.6,3732.0,0.00228245]
[1760229154083,0.3573,3732.9,3732.1,0.48181]
[1760229154278,0.48179,3732.4,3732.0,0.00228245]
[1760229154474,0.1473,3732.5,3732.0,0.20948245]
[1760229154773,0.3573,3732.5,3732.2,0.2065]
[1760229154979,0.48179,3732.3,3732.0,0.00228245]
[1760229155174,0.1429,3732.5,3732.0,0.00228245]
[1760229155377,0.3677,3732.8,3732.1,0.2065]
[1760229155686,0.3677,3733.1,3732.8,0.48172]
[1760229155980,0.00284234,3733.2,3732.9,0.4817]
[1760229156177,0.00284234,3733.2,3732.3,1.20448]
[1760229156178,0.00284234,3733.2,3733.0,0.48169]
[1760229156483,0.00284234,3733.2,3733.1,0.2065]
[1760229159484,0.3677,3734.4,3733.1,5.2065]
[1760229159676,1.09126533,3735.5,3734.1,0.2065]
[1760229159677,0.1429,3735.5,3734.1,0.2065]
[1760229159879,0.1429,3736.0,3734.9,0.2065]
[1760229160178,0.3677,3736.2,3735.4,0.48139]
[1760229160379,0.3677,3736.2,3735.4,0.68789]
[1760229160576,0.37105453,3736.2,3735.5,0.48138]
[1760229161483,0.37105453,3736.2,3735.6,0.48135]
[1760229161982,0.333,3736.9,3735.9,0.2064]
[1760229162185,0.333,3737.2,3736.3,0.48126]
[1760229162381,0.333,3737.2,3736.1,0.2064]
[1760229162382,0.81416,3737.2,3736.4,0.48125]
[1760229162986,0.81618634,3737.2,3736.4,0.48125]
[1760229163183,0.333,3736.9,3736.2,0.48128]
[1760229163391,0.8142,3736.9,3736.2,0.48128]
[1760229164079,0.8142,3736.9,3736.3,0.0084]
[1760229164482,0.33502634,3737.2,3736.7,0.48121]
[1760229164885,0.00202634,3737.2,3737.1,0.2064]
[1760229166990,0.00202634,3737.2,3736.8,0.4812]
[1760229167289,0.00202634,3737.2,3736.4,0.2064]
[1760229167483,0.1331,3738.0,3737.6,0.4811]
[1760229167690,0.1331,3738.0,3737.4,0.68753]
[1760229167887,0.4661,3738.0,3737.4,0.2064]
[1760229168187,0.4661,3738.0,3736.9,0.2064]
[1760229168388,0.46844922,3738.0,3736.9,0.2064]
[1760229168580,0.333,3737.7,3737.0,0.48118]
[1760229168784,0.1331,3738.5,3736.3,0.0084]
[1760229168785,1.91585824,3739.5,3737.7,12.02723]
[1760229168983,0.1331,3740.0,3739.8,0.48082]
[1760229169592,0.1331,3740.5,3740.4,0.48075]
[1760229169782,0.13532362,3740.5,3740.4,0.48347591]
[1760229169977,0.1331,3741.0,3740.9,0.48068]
[1760229170391,0.1331,3741.5,3740.9,0.48068]
[1760229170392,0.1331,3741.5,3741.4,0.48062]
[1760229170688,0.1331,3741.5,3741.3,0.48063]
[1760229170891,0.333,3741.4,3741.3,0.48063]
[1760229171083,0.33523685,3741.4,3741.3,0.48063]
[1760229171488,0.333,3741.3,3741.1,0.48065]
[1760229171687,0.00223685,3741.4,3741.1,0.48065]
[1760229171888,0.1331,3741.0,3740.8,0.48069]
[1760229172086,0.1331,3741.0,3740.4,0.00272591]
[1760229172087,0.4661,3740.5,3740.4,0.00272591]
[1760229172489,0.1331,3741.0,3740.9,0.48068]
[1760229173090,0.00223685,3741.4,3741.3,0.48063]
[1760229173684,0.1331,3740.5,3740.4,0.00272591]
[1760229173884,0.1331,3740.5,3737.5,1.89013612]
[1760229174087,0.1331,3741.0,3739.3,12.02203]
[1760229174301,0.00223685,3741.4,3741.2,0.48064]
[1760229174683,0.00223685,3741.4,3740.7,0.48071]
[1760229174891,0.00223685,3741.4,3740.7,0.48283865]
[1760229175183,0.1331,3741.0,3740.7,0.00212865]
[1760229175584,0.61378,3741.0,3740.7,0.00212865]
[1760229175792,0.48069,3740.8,3740.7,0.00212865]
[1760229175984,0.333,3740.8,3740.7,0.00212865]
[1760229178487,0.00223685,3741.4,3741.3,0.48063]
[1760229178989,0.33523685,3741.4,3741.3,0.48063]
[1760229180190,0.00223685,3741.4,3740.9,0.48067]
[1760229180491,0.1331,3741.0,3740.7,0.00212865]
[1760229180990,0.333,3740.9,3740.7,0.00212865]
[1760229181390,0.1331,3741.0,3740.7,0.00212865]
[1760229181694,0.333,3740.9,3740.7,0.00212865]
[1760229181887,0.61378,3741.0,3740.7,0.00212865]
[1760229182193,0.1331,3741.0,3740.7,0.00212865]
[1760229182381,0.333,3740.9,3739.5,0.48086]
[1760229182586,0.48078,3740.2,3739.4,0.48087]
[1760229182785,0.48078,3740.2,3738.3,1.20254]
[1760229182786,0.333,3740.1,3739.5,0.48085]
[1760229182993,0.333,3740.3,3738.6,12.02446]
[1760229183183,0.1331,3740.5,3740.4,0.48075]
[1760229183391,0.1331,3740.5,3740.4,0.48421098]
[1760229183591,0.33523685,3741.4,3741.3,0.48063]
[1760229183889,0.00223685,3741.4,3741.3,0.48063]
[1760229184089,0.1331,3742.0,3741.3,0.48062]
[1760229184090,0.333,3741.9,3741.3,0.48062]
[1760229184391,0.1331,3742.0,3741.1,0.48065]
[1760229184590,0.1331,3741.5,3741.3,0.48062]
[1760229184785,0.3406,3741.9,3741.0,0.48066]
[1760229184983,0.1331,3742.0,3740.4,0.00346098]
[1760229184984,0.3406,3741.4,3740.4,0.00346098]
[1760229185188,0.3406,3741.3,3740.7,0.4807]
[1760229185385,0.00231672,3741.4,3740.4,0.00346098]
[1760229185386,0.1462,3741.0,3740.4,0.00346098]
[1760229185588,0.4868,3740.5,3740.4,0.00346098]
[1760229186193,0.4868,3741.0,3740.4,0.00346098]
[1760229186496,0.34291672,3741.4,3740.5,1.20184]
[1760229186697,0.3406,3741.3,3741.2,0.48063]
[1760229186890,0.3406,3741.3,3740.4,0.00346098]
[1760229187097,0.1462,3741.0,3740.7,0.4807]
[1760229187289,0.4868,3740.5,3740.4,0.00346098]
[1760229187486,0.3406,3740.9,3740.4,0.00346098]
[1760229187787,0.1462,3741.0,3740.4,0.00346098]
[1760229188190,0.4868,3741.0,3740.9,0.48068]
[1760229188390,0.4868,3740.5,3740.4,0.48420098]
[1760229189699,0.4868,3741.0,3740.9,0.48068]
[1760229190096,0.00231672,3741.4,3741.3,0.48063]
[1760229191102,0.00231672,3741.4,3740.4,0.00346098]
[1760229191398,0.3406,3741.3,3740.4,0.00346098]
[1760229191598,0.3406,3741.3,3741.1,0.48065]
[1760229191793,0.00231672,3741.4,3741.1,0.48065]
[1760229191992,0.3406,3740.9,3740.7,0.4807]
[1760229192191,0.1462,3741.0,3740.5,0.48073]
[1760229192398,0.3406,3740.9,3740.6,0.48071]
[1760229192591,0.1462,3741.0,3740.6,0.48071]
[1760229192896,0.3406,3740.9,3740.6,0.48071]
[1760229193097,0.1462,3741.0,3740.6,0.48071]
[1760229193293,0.1462,3741.0,3740.4,0.00346098]
[1760229193294,0.3406,3740.9,3740.7,0.4807]
[1760229193894,0.1462,3741.0,3740.4,0.00346098]
[1760229194091,0.1462,3741.0,3740.6,0.48071]
[1760229194287,0.1462,3740.5,3740.4,0.48420098]
[1760229194492,0.4868,3740.5,3740.4,0.48420098]
[1760229194693,0.4868,3740.5,3740.4,0.00346098]
[1760229200906,5.4868,3740.5,3740.4,0.00346098]
[1760229201802,0.4868,3740.5,3740.4,0.00346098]
[1760229203400,0.1462,3741.0,3740.4,0.00346098]
[1760229203902,0.3406,3740.9,3740.8,0.48069]
[1760229204405,0.4868,3740.5,3740.4,0.48421098]
[1760229205009,0.4868,3740.5,3740.4,0.00346098]
[1760229206104,5.4868,3740.5,3740.4,0.00346098]
[1760229207207,0.4868,3740.5,3740.4,0.00346098]
[1760229208209,0.1462,3739.5,3739.2,1.89013612]
[1760229208507,0.1462,3739.5,3739.0,0.48091]
[1760229208802,0.1462,3739.5,3738.3,3.34925656]
[1760229208803,0.1462,3739.5,3739.2,0.48089]
[1760229209002,0.3406,3739.4,3738.5,1.20248]
[1760229209202,0.1462,3739.5,3739.2,0.48089]
[1760229209398,0.3406,3739.4,3739.3,0.48088]
[1760229210906,0.1462,3740.0,3738.5,1.20510086]
[1760229211212,0.3406,3739.9,3739.8,0.48082]
[1760229211904,0.1462,3740.0,3738.6,1.89013612]
[1760229212111,0.1462,3739.5,3739.2,0.48089]
[1760229212497,0.3406,3739.4,3739.3,0.48088]
[1760229212708,0.3406,3739.4,3739.1,0.4809]
[1760229212911,0.1462,3739.5,3739.2,0.48089]
[1760229213213,0.1462,3739.5,3738.5,0.00262086]
[1760229213214,0.3406,3739.4,3739.0,0.48092]
[1760229213398,0.3406,3739.4,3739.2,0.48089]
[1760229213605,0.3406,3739.4,3739.3,0.48089]
[1760229214005,0.3406,3739.4,3738.5,0.00262086]
[1760229214304,0.4868,3739.0,3738.9,0.48094]
[1760229214507,1.86453498,3742.1,3738.5,0.00262086]
[1760229214713,0.21609737,3744.3,3738.5,0.00262086]
[1760229214714,0.1462,3742.5,3741.9,1.20138]
[1760229214904,0.1462,3743.0,3742.9,0.48042]
[1760229215204,0.1462,3743.0,3742.9,1.91283162]
[1760229215404,0.1462,3743.0,3742.9,0.48042]
[1760229215611,0.14817585,3743.0,3742.9,0.48386703]
[1760229216410,0.14817585,3743.0,3742.9,1.91618078]
[1760229216610,5.14817585,3743.0,3742.9,0.48386703]
[1760229216807,5.51587585,3743.0,3742.9,0.48386703]
[1760229217214,0.51587585,3743.0,3742.9,0.48386703]
[1760229218610,0.51587585,3743.0,3742.9,1.91618078]
[1760229218811,0.51587585,3743.0,3742.9,0.48386703]
[1760229219207,0.51587585,3743.0,3742.9,1.91151661]
[1760229219410,0.51587585,3743.0,3742.3,1.20125]
[1760229219411,0.3677,3742.4,3742.0,0.0084]
[1760229219604,0.3677,3742.9,3742.0,0.165]
[1760229219810,0.3677,3742.9,3742.5,0.48046]
[1760229220010,0.3677,3742.9,3742.6,0.48045]
[1760229220316,0.3677,3742.9,3742.7,0.48044]
[1760229220715,0.3677,3742.9,3742.6,0.00298949]
[1760229221216,0.3535,3742.1,3742.0,0.0084]
[1760229221515,5.3535,3742.1,3742.0,0.0084]
[1760229222015,0.1438,3742.5,3742.0,0.0084]
[1760229222216,0.3535,3742.4,3742.0,0.01109268]
[1760229222428,0.3535,3742.4,3742.1,0.48053]
[1760229222713,0.1438,3742.5,3742.0,0.01109268]
[1760229223313,0.3535,3741.8,3741.1,0.48065]